bitfinex/quotes_BTCUSD_20250328
["timestamp","ask_amount","ask_price","bid_price","bid_amount"]
[1743141860234,0.00204442,86249.0,86248.0,2.88100949]
[1743141860412,0.00204442,86249.0,86248.0,2.78376049]
[1743141860566,0.00204442,86249.0,86248.0,2.16071449]
[1743141860764,0.00204442,86249.0,86248.0,2.15471449]
[1743141860973,0.00204442,86249.0,86248.0,1.96043549]
[1743141861717,0.00204442,86249.0,86248.0,1.95443549]
[1743141862156,0.00238282,86249.0,86248.0,1.96043549]
[1743141862359,0.00238282,86249.0,86248.0,1.14977749]
[1743141862874,0.00238282,86249.0,86248.0,1.34326149]
[1743141863114,0.00238282,86249.0,86248.0,1.73044624]
[1743141863515,0.00238282,86249.0,86248.0,1.46823724]
[1743141863728,0.00238282,86249.0,86248.0,1.43652224]
[1743141863902,0.00238282,86249.0,86248.0,1.58480224]
[1743141864358,3e-07,86279.0,86276.0,0.236814]
[1743141864552,0.000338,86307.0,86296.0,0.26483985]
[1743141864757,0.00078305,86297.0,86296.0,0.41307985]
[1743141864965,0.00078305,86297.0,86296.0,0.71307985]
[1743141865547,0.00078305,86297.0,86296.0,0.72466466]
[1743141865788,1e-06,86309.0,86308.0,0.531728]
[1743141866008,4.543e-05,86309.0,86308.0,1.28098349]
[1743141866222,4.543e-05,86309.0,86308.0,1.42922349]
[1743141866977,4.543e-05,86309.0,86308.0,1.28098349]
[1743141867180,4.543e-05,86309.0,86308.0,1.12922349]
[1743141867500,4.543e-05,86309.0,86308.0,1.13422349]
[1743141868239,4.543e-05,86309.0,86308.0,1.14022349]
[1743141870817,4.543e-05,86309.0,86308.0,0.99198349]
[1743141873330,4.543e-05,86309.0,86308.0,0.98503249]
[1743141874461,4.543e-05,86309.0,86308.0,0.99198349]
[1743141874663,4.543e-05,86309.0,86308.0,0.99232169]
[1743141874869,0.243283,86319.0,86308.0,0.99232169]
[1743141874870,7e-05,86346.0,86333.0,0.243244]
[1743141875091,0.0127985,86355.0,86354.0,0.250135]
[1743141875092,0.0120377,86355.0,86354.0,0.250135]
[1743141875259,0.0120377,86355.0,86354.0,0.72288864]
[1743141875630,0.0120377,86355.0,86354.0,0.73742949]
[1743141875833,0.0120377,86355.0,86354.0,0.74900949]
[1743141875834,0.01217098,86355.0,86354.0,0.74900949]
[1743141875977,1.01217098,86355.0,86354.0,0.74900949]
[1743141876765,1.01217098,86355.0,86354.0,0.75100949]
[1743141877113,1.01217098,86355.0,86354.0,0.74900949]
[1743141877824,1.01217098,86355.0,86354.0,0.73742949]
[1743141878467,1.01217098,86355.0,86354.0,0.73942949]
[1743141878589,1.01217098,86355.0,86354.0,0.74142949]
[1743141878997,1.01217098,86355.0,86354.0,0.74442949]
[1743141879247,1.01217098,86355.0,86354.0,0.73742949]
[1743141879579,1.01217098,86355.0,86354.0,0.73942949]
[1743141879859,1.01217098,86355.0,86354.0,0.74342949]
[1743141880062,1.01217098,86355.0,86354.0,0.75500949]
[1743141880266,1.01207308,86355.0,86354.0,0.75500949]
[1743141880695,1.01207308,86355.0,86354.0,0.74342949]
[1743141880896,1.02365308,86355.0,86354.0,0.74342949]
[1743141881828,1.01207308,86355.0,86354.0,0.74342949]
[1743141882040,1.01207308,86355.0,86354.0,0.75500949]
[1743141883483,1.01207308,86355.0,86354.0,0.74342949]
[1743141885158,1.01207308,86355.0,86354.0,0.75500949]
[1743141886479,0.01224218,86355.0,86354.0,0.75500949]
[1743141887990,0.01224218,86355.0,86354.0,0.75300949]
[1743141888309,0.01224218,86355.0,86354.0,0.75200949]
[1743141888522,0.01224218,86355.0,86354.0,0.75400949]
[1743141888873,0.01224218,86355.0,86354.0,0.75200949]
[1743141889072,0.01224218,86355.0,86354.0,0.74900949]
[1743141889378,0.01224218,86355.0,86354.0,0.75500949]
[1743141889711,0.01224218,86355.0,86354.0,0.75900949]
[1743141890336,0.01224218,86355.0,86354.0,0.99061349]
[1743141891814,0.01224218,86355.0,86354.0,0.73288864]
[1743141891977,0.01224218,86355.0,86354.0,0.74742949]
[1743141892179,1.01224218,86355.0,86354.0,0.74446864]
[1743141892601,1.01224218,86355.0,86354.0,0.75900949]
[1743141893487,0.01224218,86355.0,86354.0,0.75900949]
[1743141897880,0.01224218,86355.0,86354.0,0.75934749]
[1743141903720,0.09134218,86355.0,86354.0,0.75934749]
[1743141903915,0.09134218,86355.0,86354.0,0.74776749]
[1743141904713,1.09134218,86355.0,86354.0,0.74776749]
[1743141905904,1.10292218,86355.0,86354.0,0.74776749]
[1743141906660,1.10292218,86355.0,86354.0,0.72027564]
[1743141907062,1.10292218,86355.0,86354.0,0.72427564]
[1743141907290,1.10292218,86355.0,86354.0,0.11859564]
[1743141907700,1.1210822,86355.0,86354.0,0.13513649]
[1743141908509,1.1210822,86355.0,86354.0,0.13113649]
[1743141908706,1.1210822,86355.0,86354.0,0.13313649]
[1743141908910,1.23533984,86355.0,86354.0,0.13113649]
[1743141909154,1.1210822,86355.0,86354.0,0.13213649]
[1743141910162,1.1210822,86355.0,86354.0,0.13013649]
[1743141910492,1.1210822,86355.0,86354.0,0.13213649]
[1743141910663,1.1210822,86355.0,86354.0,0.003338]
[1743141911562,1.1210822,86355.0,86354.0,0.13213649]
[1743141911728,1.1210822,86355.0,86354.0,0.13013649]
[1743141911927,1.1210822,86355.0,86354.0,0.11559564]
[1743141912137,1.1210822,86355.0,86354.0,0.11659564]
[1743141912568,1.1210822,86355.0,86354.0,0.13113649]
[1743141912772,1.1095022,86355.0,86354.0,0.13113649]
[1743141913193,1.0304022,86355.0,86354.0,0.13808749]
[1743141913391,0.0304022,86355.0,86354.0,0.13808749]
[1743141913670,0.0304022,86355.0,86354.0,0.13608749]
[1743141914063,0.01224218,86355.0,86354.0,0.13808749]
[1743141914567,0.01224218,86355.0,86354.0,0.13608749]
[1743141914999,0.24384418,86355.0,86354.0,0.14008749]
[1743141915131,0.25542418,86355.0,86354.0,0.14008749]
[1743141915333,0.01224218,86355.0,86354.0,0.14008749]
[1743141915527,1.01224218,86355.0,86354.0,0.14108749]
[1743141917251,1.03040285,86355.0,86354.0,0.14108749]
[1743141917654,1.04198285,86355.0,86354.0,0.14008749]
[1743141918099,1.04198285,86355.0,86354.0,0.14208749]
[1743141919029,1.03040285,86355.0,86354.0,0.14208749]
[1743141919241,1.04198285,86355.0,86354.0,0.14208749]
[1743141920503,1.02382218,86355.0,86354.0,0.14208749]
[1743141923352,1.04198287,86355.0,86354.0,0.14208749]
[1743141927433,1.04198287,86355.0,86354.0,0.19218749]
[1743141927801,1.05349094,86355.0,86354.0,0.17069564]
[1743141928021,1.29664858,86355.0,86354.0,0.17069564]
[1743141928422,1.18239094,86355.0,86354.0,0.17069564]
[1743141928618,1.16423025,86355.0,86354.0,0.17069564]
[1743141928825,1.46423025,86355.0,86354.0,0.054438]
[1743141929465,1.46423025,86355.0,86354.0,0.050438]
[1743141929911,1.46423025,86355.0,86354.0,0.052438]
[1743141930793,1.57848789,86355.0,86354.0,0.052438]
[1743141931295,1.57848789,86355.0,86354.0,0.034278]
[1743141931925,1.46423025,86355.0,86354.0,0.034278]
[1743141932476,1.46423025,86355.0,86354.0,0.032278]
[1743141933318,1.46423025,86355.0,86354.0,0.032616]
[1743141933527,1.61195025,86355.0,86354.0,0.032616]
[1743141934266,1.63011352,86355.0,86354.0,0.032616]
[1743141934664,1.74437116,86355.0,86354.0,0.032616]
[1743141934865,1.72620789,86355.0,86354.0,0.032616]
[1743141938084,1.74437116,86355.0,86354.0,0.032616]
[1743141939241,1.63011352,86355.0,86354.0,0.032616]
[1743141940952,1.63511352,86355.0,86354.0,0.032616]
[1743141944595,1.61695025,86355.0,86354.0,0.032616]
[1743141946168,1.46423025,86355.0,86354.0,0.032616]
[1743141946479,1.61191025,86355.0,86354.0,0.000338]
[1743141947513,1.73116789,86355.0,86354.0,0.000338]
[1743141947919,1.74933205,86355.0,86354.0,0.000338]
[1743141953819,2.29933869,86355.0,86354.0,1e-06]
[1743141954609,2.28117453,86355.0,86354.0,1e-06]
[1743141955207,2.28317453,86355.0,86354.0,1e-06]
[1743141955829,2.28117453,86355.0,86354.0,1e-06]
[1743141956175,2.28317453,86355.0,86354.0,1e-06]
[1743141959341,2.30134064,86355.0,86354.0,1e-06]
[1743141964660,2.28317453,86355.0,86354.0,1e-06]
[1743141965989,2.02123689,86355.0,86354.0,1e-06]
[1743141966188,1.90697925,86355.0,86354.0,1e-06]
[1743141966338,1.46003025,86355.0,86354.0,1e-06]
[1743141966542,1.60759025,86355.0,86354.0,1e-06]
[1743141966740,1.90759025,86355.0,86354.0,1e-06]
[1743141966906,1.87428789,86355.0,86354.0,1e-06]
[1743141967113,2.02184789,86355.0,86354.0,1e-06]
[1743141967313,2.01984789,86355.0,86354.0,1e-06]
[1743141967715,2.02384789,86355.0,86354.0,1e-06]
[1743141967937,2.0420133,86355.0,86354.0,1e-06]
[1743141968978,2.28537094,86355.0,86354.0,1e-06]
[1743141969226,2.1761133,86355.0,86354.0,1e-06]
[1743141970084,2.0285533,86355.0,86354.0,1e-06]
[1743141970219,2.1760733,86355.0,86354.0,1e-06]
[1743141974688,2.15790789,86355.0,86354.0,1e-06]
[1743141976175,2.27216553,86355.0,86354.0,1e-06]
[1743141976482,2.29021453,86355.0,86354.0,1e-06]
[1743141977685,2.30838069,86355.0,86354.0,1e-06]
[1743141981816,2.30438069,86355.0,86354.0,1e-06]
[1743141982006,2.29938069,86355.0,86354.0,1e-06]
[1743141982170,2.30938069,86355.0,86354.0,1e-06]
[1743141984008,2.43168069,86355.0,86354.0,1e-06]
[1743141984225,2.30938069,86355.0,86354.0,1e-06]
[1743141984641,2.29121453,86355.0,86354.0,1e-06]
[1743141987801,2.30938131,86355.0,86354.0,1e-06]
[1743141991063,2.04760367,86355.0,86354.0,1e-06]
[1743141991308,1.62859703,86355.0,86354.0,1e-06]
[1743141991715,1.92859703,86355.0,86354.0,1e-06]
[1743141992536,1.92359703,86355.0,86354.0,1e-06]
[1743141992740,1.91859703,86355.0,86354.0,1e-06]
[1743141992939,1.97321277,86355.0,86354.0,1e-06]
[1743141993297,1.67321277,86355.0,86354.0,1e-06]
[1743141993685,1.97317277,86355.0,86354.0,1e-06]
[1743141994554,1.95500599,86355.0,86354.0,1e-06]
[1743141994757,1.76203025,86355.0,86354.0,1e-06]
[1743141995726,1.75703025,86355.0,86354.0,1e-06]
[1743141996141,1.76103025,86355.0,86354.0,1e-06]
[1743141996399,1.75703025,86355.0,86354.0,1e-06]
[1743141996632,1.76103025,86355.0,86354.0,1e-06]
[1743141997132,1.75703025,86355.0,86354.0,1e-06]
[1743141997526,1.76003025,86355.0,86354.0,1e-06]
[1743141997938,1.34233025,86355.0,86354.0,1e-06]
[1743142000801,1.45658789,86355.0,86354.0,1e-06]
[1743142001911,1.46158789,86355.0,86354.0,1e-06]
[1743142002126,1.54168789,86355.0,86354.0,1e-06]
[1743142003738,1.95938789,86355.0,86354.0,1e-06]
[1743142004908,1.84513025,86355.0,86354.0,1e-06]
[1743142009161,1.95938789,86355.0,86354.0,1e-06]
[1743142009362,1.97743689,86355.0,86354.0,1e-06]
[1743142010039,1.97443689,86355.0,86354.0,1e-06]
[1743142010439,1.97043689,86355.0,86354.0,1e-06]
[1743142010647,2.08469453,86355.0,86354.0,1e-06]
[1743142011309,2.08969453,86355.0,86354.0,1e-06]
[1743142011824,2.09469453,86355.0,86354.0,1e-06]
[1743142012243,0.543249,86331.0,86318.0,0.0473]
[1743142012414,0.7922642,86331.0,86318.0,0.0473]
[1743142012914,0.690449,86331.0,86318.0,0.0473]
[1743142013170,0.70861748,86331.0,86318.0,0.0473]
[1743142013385,0.70961748,86331.0,86318.0,0.0473]
[1743142013585,0.56241748,86331.0,86330.0,0.114178]
[1743142013787,1.73225947,86331.0,86330.0,0.114178]
[1743142014136,1.58505947,86331.0,86330.0,0.114178]
[1743142014757,1.58505947,86331.0,86330.0,0.162678]
[1743142015490,1.01916848,86331.0,86330.0,0.28388664]
[1743142015733,1.02975148,86331.0,86330.0,0.29842749]
[1743142015977,1.26241748,86331.0,86330.0,0.29842749]
[1743142016331,1.26141748,86331.0,86330.0,0.29842749]
[1743142016527,1.26241748,86331.0,86330.0,0.29842749]
[1743142016932,1.26241748,86331.0,86330.0,0.28388664]
[1743142018673,1.244249,86331.0,86330.0,0.28388664]
[1743142018813,1.26241531,86331.0,86330.0,0.28388664]
[1743142024737,1.244249,86331.0,86330.0,0.28388664]
[1743142026378,1.012583,86331.0,86330.0,0.28388664]
[1743142026747,1.012583,86331.0,86330.0,0.28422524]
[1743142028425,1.03074911,86331.0,86330.0,0.28422524]
[1743142030255,1.01916611,86331.0,86330.0,0.56373301]
[1743142030684,1.01916611,86331.0,86330.0,0.32048101]
[1743142030878,1.26241511,86331.0,86330.0,0.32048101]
[1743142031486,1.26141511,86331.0,86330.0,0.32048101]
[1743142031688,1.26141511,86331.0,86330.0,0.32248101]
[1743142032006,1.01816611,86331.0,86330.0,0.32048101]
[1743142032379,1.01816611,86331.0,86330.0,0.32248101]
[1743142032788,1.26141511,86331.0,86330.0,0.32248101]
[1743142032927,1.26141511,86331.0,86330.0,0.17058916]
[1743142033380,1.26141511,86331.0,86330.0,0.17754016]
[1743142034610,1.243249,86331.0,86330.0,0.17754016]
[1743142040636,1.243249,86331.0,86330.0,0.19208101]
[1743142041029,1.0181653,86331.0,86330.0,0.19208101]
[1743142041247,1.0181653,86331.0,86330.0,0.55883301]
[1743142041460,1.0181653,86331.0,86330.0,0.31558101]
[1743142042285,0.0181653,86331.0,86330.0,0.31558101]
[1743142043654,0.24322,86342.0,86341.0,0.006951]
[1743142043852,0.24322,86342.0,86341.0,0.12120864]
[1743142045006,1.31738638,86342.0,86341.0,0.12320864]
[1743142045261,1.24322,86342.0,86341.0,0.12320864]
[1743142045635,1.24322,86342.0,86341.0,0.14492356]
[1743142047327,1.011581,86342.0,86341.0,0.14492356]
[1743142047531,1.0,86342.0,86341.0,0.14492356]
[1743142048860,1.0,86342.0,86341.0,0.15946441]
[1743142049766,1.01816302,86342.0,86341.0,0.15946441]
[1743142050804,1.01816302,86342.0,86341.0,0.17104541]
[1743142051010,1.01816302,86342.0,86341.0,0.49214809]
[1743142051223,1.01816302,86342.0,86341.0,0.53824809]
[1743142051610,0.01816302,86342.0,86341.0,0.29502809]
[1743142051814,0.01816302,86342.0,86341.0,0.29302809]
[1743142052232,0.01816302,86342.0,86341.0,0.29502809]
[1743142053046,0.01816302,86342.0,86341.0,0.30760909]
[1743142053792,0.01816302,86342.0,86341.0,0.30660909]
[1743142054012,0.01816302,86342.0,86341.0,0.31160909]
[1743142054616,0.0001693,86354.0,86353.0,0.006951]
[1743142054758,0.0001693,86354.0,86353.0,0.13574949]
[1743142055637,0.0001693,86354.0,86353.0,0.15746441]
[1743142055832,0.0001693,86354.0,86353.0,0.15846441]
[1743142055995,1.0001693,86354.0,86353.0,0.15846441]
[1743142056794,1.0001693,86354.0,86353.0,0.16046441]
[1743142057502,1.0001693,86354.0,86353.0,0.15846441]
[1743142057910,1.2317733,86354.0,86353.0,0.16146441]
[1743142058113,1.0001693,86354.0,86353.0,0.16146441]
[1743142058312,1.0001693,86354.0,86353.0,0.16046441]
[1743142058821,1.0001693,86354.0,86353.0,0.16246441]
[1743142058963,1.0001693,86354.0,86353.0,0.16046441]
[1743142059140,1.0001693,86354.0,86353.0,0.15746441]
[1743142059345,1.0001693,86354.0,86353.0,0.15946441]
[1743142059606,1.2433533,86354.0,86353.0,0.16246441]
[1743142060669,1.3757716,86354.0,86353.0,0.16246441]
[1743142060870,1.26151396,86354.0,86353.0,0.14792356]
[1743142061076,1.26151396,86354.0,86353.0,0.14097256]
[1743142062014,1.26151396,86354.0,86353.0,0.14792356]
[1743142062861,1.26151396,86354.0,86353.0,0.11925764]
[1743142063012,1.3757716,86354.0,86353.0,0.11925764]
[1743142063895,1.3757716,86354.0,86353.0,0.12620864]
[1743142064250,1.26151396,86354.0,86353.0,0.12620864]
[1743142064660,1.26151396,86354.0,86353.0,0.11925764]
[1743142065065,1.26151396,86354.0,86353.0,0.12620864]
[1743142065698,1.26151396,86354.0,86353.0,0.15848664]
[1743142067548,1.26151396,86354.0,86353.0,0.037278]
[1743142067751,1.3757716,86354.0,86353.0,0.037278]
[1743142068902,1.6757716,86354.0,86353.0,0.037278]
[1743142069103,1.6757716,86354.0,86353.0,0.035278]
[1743142069327,1.6757716,86354.0,86353.0,0.032278]
[1743142069688,1.7524716,86354.0,86353.0,0.032278]
[1743142070069,0.243217,86342.0,86341.0,0.0003386]
[1743142070300,0.322617,86342.0,86341.0,0.0003386]
[1743142070434,0.622617,86342.0,86341.0,0.0003386]
[1743142070639,0.66158889,86342.0,86341.0,0.0003386]
[1743142070843,0.67975328,86342.0,86341.0,0.0003386]
[1743142071287,0.67975328,86342.0,86341.0,0.0033386]
[1743142071509,0.67975328,86342.0,86341.0,0.0053386]
[1743142072153,1.67975328,86342.0,86341.0,0.0053386]
[1743142073440,1.64078139,86342.0,86341.0,0.0053386]
[1743142073642,1.56138139,86342.0,86341.0,0.11959624]
[1743142078363,1.56138139,86342.0,86341.0,0.0053386]
[1743142079614,1.56138139,86342.0,86341.0,0.0023386]
[1743142079820,1.67563903,86342.0,86341.0,0.0053386]
[1743142079991,1.67563903,86342.0,86341.0,0.0033386]
[1743142080196,1.67563903,86342.0,86341.0,0.0053386]
[1743142080401,1.67563903,86342.0,86341.0,0.0023386]
[1743142080595,1.67563903,86342.0,86341.0,0.0033386]
[1743142080798,1.67563903,86342.0,86341.0,0.0053386]
[1743142081004,1.65747464,86342.0,86341.0,0.0053386]
[1743142081847,1.543217,86342.0,86341.0,0.0053386]
[1743142084305,1.56138214,86342.0,86341.0,0.0053386]
[1743142093100,1.26138214,86342.0,86341.0,0.12654724]
[1743142093302,1.26138214,86342.0,86341.0,0.14108809]
[1743142093710,1.243217,86342.0,86341.0,0.1482574]
[1743142094077,1.243217,86342.0,86341.0,0.02704876]
[1743142094078,1.35747464,86342.0,86341.0,0.02704876]
[1743142094397,1.65747464,86342.0,86341.0,0.02704876]
[1743142095031,1.65747464,86342.0,86341.0,0.0053386]
[1743142095696,0.325749,86331.0,86330.0,0.0003386]
[1743142095823,0.4102403,86331.0,86330.0,0.0003386]
[1743142096223,0.7102403,86331.0,86330.0,0.0003386]
[1743142096951,0.675349,86331.0,86330.0,0.0033386]
[1743142097154,0.543249,86331.0,86330.0,0.11759624]
[1743142097406,1.543249,86331.0,86330.0,0.11759624]
[1743142098641,1.55502761,86331.0,86330.0,0.11759624]
[1743142098928,1.66928525,86331.0,86330.0,0.12159624]
[1743142099476,1.66928525,86331.0,86330.0,0.0073386]
[1743142099834,1.55502761,86331.0,86330.0,0.0003386]
[1743142100173,1.55502761,86331.0,86330.0,0.0033386]
[1743142101325,1.55502761,86331.0,86330.0,0.0003386]
[1743142101715,1.55502761,86331.0,86330.0,0.0023386]
[1743142103012,1.70162761,86331.0,86330.0,0.0023386]
[1743142103226,1.81588525,86331.0,86330.0,0.0023386]
[1743142103359,1.89808525,86331.0,86330.0,0.0023386]
[1743142104191,1.91625235,86331.0,86330.0,0.0023386]
[1743142104372,1.91625235,86331.0,86330.0,0.0013386]
[1743142104574,1.89808525,86331.0,86330.0,0.0013386]
[1743142104769,1.89808525,86331.0,86330.0,0.0033386]
[1743142105396,1.89808525,86331.0,86330.0,0.0013386]
[1743142105815,1.89808525,86331.0,86330.0,0.0023386]
[1743142106145,1.89808525,86331.0,86330.0,0.0013386]
[1743142106789,1.78382761,86331.0,86330.0,0.0013386]
[1743142108066,1.80199492,86331.0,86330.0,0.0013386]
[1743142109466,1.56141631,86331.0,86330.0,0.0013386]
[1743142113219,1.56141631,86331.0,86330.0,0.11559624]
[1743142113758,1.26141631,86331.0,86330.0,0.12254724]
[1743142115105,1.243249,86331.0,86330.0,0.12254724]
[1743142117667,1.243249,86331.0,86330.0,0.12354724]
[1743142118395,1.26141444,86331.0,86330.0,0.12254724]
[1743142118567,1.26141444,86331.0,86330.0,0.12354724]
[1743142120687,1.37567208,86331.0,86330.0,0.12354724]
[1743142121205,1.26141444,86331.0,86330.0,0.12354724]
[1743142123521,1.26141444,86331.0,86330.0,0.13808809]
[1743142126841,1.26141444,86331.0,86330.0,0.12354724]
[1743142129198,1.26141444,86331.0,86330.0,0.11659624]
[1743142129400,1.26141444,86331.0,86330.0,0.12354724]
[1743142129679,1.37567208,86331.0,86330.0,0.12354724]
[1743142130219,1.26141444,86331.0,86330.0,0.12354724]
[1743142130577,1.26141444,86331.0,86330.0,0.11659624]
[1743142130779,1.26141444,86331.0,86330.0,0.12354724]
[1743142137029,1.243249,86331.0,86330.0,0.12354724]
[1743142137201,1.243249,86331.0,86330.0,0.11659624]
[1743142137409,1.35750664,86331.0,86330.0,0.12354724]
[1743142137551,1.35750664,86331.0,86330.0,0.11659624]
[1743142138437,1.35750664,86331.0,86330.0,0.0023386]
[1743142138772,1.66905114,86331.0,86330.0,0.0023386]
[1743142139345,1.74495114,86331.0,86330.0,0.0023386]
[1743142141339,1.74495114,86331.0,86330.0,0.0013386]
[1743142142536,1.74495114,86331.0,86330.0,0.0003386]
[1743142143110,1.64986104,86331.0,86330.0,0.0003386]
[1743142145284,1.57396104,86331.0,86330.0,0.0003386]
[1743142145481,1.56241654,86331.0,86330.0,0.0003386]
[1743142145861,1.544249,86331.0,86330.0,0.0003386]
[1743142148832,1.244249,86331.0,86330.0,0.0003386]
[1743142149021,1.244249,86331.0,86330.0,0.12154724]
[1743142149443,1.26241561,86331.0,86330.0,0.12154724]
[1743142151485,1.26241561,86331.0,86330.0,0.12354724]
[1743142151684,1.26141561,86331.0,86330.0,0.12354724]
[1743142152135,1.26141561,86331.0,86330.0,0.13908809]
[1743142152136,1.01816661,86331.0,86330.0,0.13908809]
[1743142152413,1.02974961,86331.0,86330.0,0.13908809]
[1743142152588,0.02974961,86331.0,86330.0,0.13908809]
[1743142152816,0.02974961,86331.0,86330.0,0.15079361]
[1743142152984,0.01816661,86331.0,86330.0,0.15079361]
[1743142153166,0.02974961,86331.0,86330.0,0.15079361]
[1743142154018,0.02974961,86331.0,86330.0,0.13908809]
[1743142154747,0.011583,86331.0,86330.0,0.13908809]
[1743142157916,0.011583,86331.0,86330.0,0.12454724]
[1743142158229,0.011583,86331.0,86330.0,0.11759624]
[1743142158563,0.011583,86331.0,86330.0,0.12454724]
[1743142158969,0.011583,86331.0,86330.0,0.11759624]
[1743142159189,1.011583,86331.0,86330.0,0.12454724]
[1743142159586,1.011583,86331.0,86330.0,0.11759624]
[1743142159764,1.0297486,86331.0,86330.0,0.12454724]
[1743142164757,1.011583,86331.0,86330.0,0.12454724]
[1743142170121,1.02974888,86331.0,86330.0,0.12454724]
[1743142171286,1.02974888,86331.0,86330.0,0.13908809]
[1743142172418,0.02974888,86331.0,86330.0,0.13908809]
[1743142174711,0.011583,86331.0,86330.0,0.13708809]
[1743142174938,0.011583,86331.0,86330.0,0.13808809]
[1743142175144,0.011583,86331.0,86330.0,0.13908809]
[1743142177882,0.02974751,86331.0,86330.0,0.13908809]
[1743142178470,0.01816451,86331.0,86330.0,0.15067109]
[1743142180234,0.01816451,86331.0,86330.0,0.23297109]
[1743142180638,0.0001692,86341.0,86340.0,0.380775]
[1743142180854,0.0001692,86341.0,86340.0,0.50957349]
[1743142181649,0.0001692,86341.0,86340.0,1.83709849]
[1743142181866,0.0001692,86341.0,86340.0,1.83708249]
[1743142182080,0.0001692,86341.0,86340.0,1.84108249]
[1743142182433,0.0001692,86341.0,86340.0,1.83708249]
[1743142182877,0.0001692,86341.0,86340.0,1.84308249]
[1743142183419,0.0001692,86341.0,86340.0,1.42389649]
[1743142183623,0.0001692,86341.0,86340.0,1.73775182]
[1743142184164,0.0001692,86341.0,86340.0,0.83442882]
[1743142184363,0.0001692,86341.0,86340.0,5.13674382]
[1743142184617,0.0001692,86341.0,86340.0,5.32706182]
[1743142184820,0.0001692,86341.0,86340.0,4.3718817]
[1743142185451,0.0001692,86341.0,86340.0,4.7897817]
[1743142185649,0.0001692,86341.0,86340.0,4.74775282]
[1743142185854,0.0001692,86341.0,86340.0,4.78376135]
[1743142186034,0.0001692,86341.0,86340.0,4.78476135]
[1743142186644,0.0001692,86341.0,86340.0,4.23165282]
[1743142186817,0.0001692,86341.0,86340.0,4.23765282]
[1743142187003,0.0001692,86341.0,86340.0,4.24365282]
[1743142187221,0.0001692,86341.0,86340.0,2.19280582]
[1743142187431,0.0001692,86341.0,86340.0,1.98967682]
[1743142187632,0.0001692,86341.0,86340.0,1.99567682]
[1743142190733,0.0001692,86341.0,86340.0,1.99601522]
[1743142194924,0.0001692,86341.0,86340.0,1.27366722]
[1743142195115,0.0001692,86341.0,86340.0,1.41958722]
[1743142195324,0.0001692,86341.0,86340.0,2.06646322]
[1743142196547,0.0001692,86341.0,86340.0,2.66770322]
[1743142199055,0.0001692,86341.0,86340.0,2.67270322]
[1743142200727,0.0001692,86341.0,86340.0,2.66670322]
[1743142200951,0.00052973,86358.0,86352.0,0.550141]
[1743142201156,0.00052973,86358.0,86352.0,3.08092249]
[1743142201366,0.00052973,86358.0,86352.0,5.05573449]
[1743142201706,0.00052973,86358.0,86352.0,3.83717149]
[1743142202237,0.00052973,86358.0,86357.0,0.635326]
[1743142202502,0.00057411,86358.0,86357.0,3.70678449]
[1743142202851,0.00057411,86358.0,86357.0,3.67858649]
[1743142203074,0.00057411,86358.0,86357.0,3.57005949]
[1743142203602,0.00057411,86358.0,86357.0,3.60105949]
[1743142205073,0.00057411,86358.0,86357.0,3.52016849]
[1743142205612,0.00057411,86358.0,86357.0,0.94696449]
[1743142206056,0.00057411,86358.0,86357.0,1.36486449]
[1743142206412,0.00057411,86358.0,86357.0,4.06239549]
[1743142206611,0.00057411,86358.0,86357.0,4.06243449]
[1743142207158,0.00057411,86358.0,86357.0,2.70973649]
[1743142207377,0.00057411,86358.0,86357.0,1.30057049]
[1743142207699,0.00057411,86358.0,86357.0,1.44637049]
[1743142207905,0.00057411,86358.0,86357.0,1.23313264]
[1743142208077,0.00057411,86358.0,86357.0,0.94008364]
[1743142208478,0.0181572,86364.0,86363.0,0.01853]
[1743142208687,0.0181572,86364.0,86363.0,0.36436764]
[1743142208688,0.0962572,86364.0,86363.0,0.36436764]
[1743142209536,0.1078352,86364.0,86363.0,0.12120864]
[1743142209721,0.0962572,86364.0,86363.0,0.15114196]
[1743142209929,0.0962572,86364.0,86363.0,0.13974949]
[1743142210148,0.0962572,86364.0,86363.0,0.38290849]
[1743142210354,0.0962572,86364.0,86363.0,0.38890849]
[1743142211069,0.0962572,86364.0,86363.0,0.40023499]
[1743142212545,0.0962572,86364.0,86363.0,0.16865499]
[1743142214787,0.0781,86364.0,86363.0,0.14574949]
[1743142215016,0.321255,86364.0,86363.0,0.13879849]
[1743142215233,0.3685242,86364.0,86363.0,0.14574949]
[1743142215767,1.3685242,86364.0,86363.0,0.74690949]
[1743142216474,1.3685242,86364.0,86363.0,0.73995849]
[1743142217058,1.3685242,86364.0,86363.0,0.73236864]
[1743142217261,1.3685242,86364.0,86363.0,0.72541764]
[1743142217460,1.3685242,86364.0,86363.0,0.12425764]
[1743142217666,1.6685242,86364.0,86363.0,0.01]
[1743142217872,1.71004138,86364.0,86363.0,0.01]
[1743142218536,1.71004138,86364.0,86363.0,0.006]
[1743142218939,1.71004138,86364.0,86363.0,0.008]
[1743142219896,1.71004138,86364.0,86363.0,0.002]
[1743142220094,1.71004138,86364.0,86363.0,0.004]
[1743142220609,1.71004138,86364.0,86356.0,0.006951]
[1743142220610,0.243175,86357.0,86356.0,0.006951]
[1743142220794,0.365575,86357.0,86356.0,0.12120864]
[1743142221882,0.365575,86357.0,86356.0,0.12920864]
[1743142222297,1.365575,86357.0,86356.0,0.12920864]
[1743142227517,1.365575,86357.0,86356.0,0.12954704]
[1743142227942,1.38373597,86357.0,86356.0,0.12954704]
[1743142234609,1.365575,86357.0,86356.0,0.12954704]
[1743142235585,1.365575,86357.0,86356.0,0.12454704]
[1743142235933,1.47983264,86357.0,86356.0,0.0033384]
[1743142236513,1.47983264,86357.0,86356.0,0.0102894]
[1743142236924,1.365575,86357.0,86356.0,0.0072894]
[1743142237152,1.365575,86357.0,86356.0,0.0082894]
[1743142237472,1.365575,86357.0,86356.0,0.0072894]
[1743142237681,1.365575,86357.0,86356.0,0.0102894]
[1743142238091,1.365575,86357.0,86356.0,0.0072894]
[1743142238586,1.365575,86357.0,86356.0,0.0092894]
[1743142239171,1.38373646,86357.0,86356.0,0.0092894]
[1743142240359,1.38373646,86357.0,86356.0,0.12354704]
[1743142241936,1.38373646,86357.0,86356.0,0.0023384]
[1743142243120,1.38373646,86357.0,86356.0,0.0092894]
[1743142243640,1.38373646,86357.0,86356.0,0.0072894]
[1743142244043,1.38373646,86357.0,86356.0,0.0092894]
[1743142244640,1.365575,86357.0,86356.0,0.0092894]
[1743142247641,1.365575,86357.0,86356.0,0.12354704]
[1743142247858,1.38373653,86357.0,86356.0,0.12354704]
[1743142248970,1.38373653,86357.0,86356.0,0.0023384]
[1743142249182,1.68373653,86357.0,86356.0,0.0023384]
[1743142255989,1.68373653,86357.0,86356.0,4e-07]
[1743142256425,1.665575,86357.0,86356.0,4e-07]
[1743142257011,0.24322,86341.0,86340.0,0.0003384]
[1743142257213,0.46213018,86341.0,86340.0,0.00733378]
[1743142257448,0.46213018,86341.0,86340.0,0.00038278]